[Event "Krakow Championship-A 2022"]
[Site "Krakow"]
[Date "2022.06.28"]
[Round "5.18"]
[White "Malicka, Maria"]
[Black "Kantorik, Marian"]
[Result "1/2-1/2"]
[ECO "C10"]
[WhiteElo "2377"]
[BlackElo "2211"]
[Annotator "TA"]
[PlyCount "96"]
[EventDate "2022.06.25"]
[EventType "swiss"]
[EventCountry "POL"]
[SourceTitle "playchess.com"]
[Source "ChessBase"]
[SourceQuality "1"]
[TimeControl "40/5400+30:1800+30"]

{[%evp 13,96,24,45,6,24,32,72,54,80,64,62,62,66,66,66,45,74,57,66,74,79,20,13,10,62,19,22,0,0,6,7,0,0,0,0,0,0,0,0,-7,3,0,0,0,26,26,24,23,23,29,35,8,8,8,8,0,0,0,224,219,215,191,131,131,176,8,15,8,8,8,8,8,8,8,8,8,8,8,8,8,8,8,8,8,8]} 1. e4 {[%emt 0:00:03]} e6 {[%emt 0:00:27]} 2. d4 {[%emt 0:00:04]} d5 {[%emt 0:00:14]} 3. Nc3 {[%emt 0:00:12]} dxe4 {[%emt 0:00:07]} 4. Nxe4 {[%emt 0:00:05]} Nd7 {[%emt 0:00:10]} 5. g3 {[%emt 0:01:20]} Ngf6 {[%emt 0:01:13]} 6. Nxf6+ {[%emt 0:00:23]} Nxf6 {[%emt 0:00:09]} 7. Bg2 {[%emt 0:00:05]} c5 {[%emt 0:07:09] 7...e5 is the hot move.} 8. Ne2 {[%emt 0:00:29] C10: French with 3 Nc3: Unusual Black 3rd moves and 3...dxe4.} cxd4 {[%emt 0:03:25]} 9. Qxd4 {[%emt 0:00:23]} Qxd4 {[%emt 0:00:42]} 10. Nxd4 {[%emt 0:00:04] White is better.} a6 {[%emt 0:01:22] Against Nb5 was the old line (10...Bc5).} 11. O-O {[%emt 0:02:48]} Bd6 {[%emt 0:03:03]} 12. c4 {[%emt 0:06:46] [#]} Rb8 $146 {[%emt 0:04:12]} ({Predecessor:} 12... O-O 13. h3 Rb8 14. Rd1 Bc7 15. Nb3 e5 16. Be3 b6 17. c5 Be6 18. cxb6 Bxb6 {1-0 (70) Hamann,C (2203)-Mitscherling,A (2249) Germany 2005}) 13. Rd1 {[%emt 0:22:23][%cal Od4e6] Hoping for Nxe6!} Bc7 {[%emt 0:06:06]} 14. Nb3 {[%emt 0:09:12]} O-O {[%emt 0:09:06]} 15. Be3 {[%emt 0:01:49]} b6 {[%emt 0:10:03]} 16. Nd4 {[%emt 0:13:18] [#] Black must now prevent Nc6.} Bb7 {[%emt 0:03:31]} 17. Nc6 {[%emt 0:04:24]} (17. Bxb7 $16 Rxb7 18. Nc6) 17... Bxc6 $11 {[%emt 0:04:09]} 18. Bxc6 {[%emt 0:00:02]} Rfc8 {[%emt 0:02:21]} (18... Ng4 $11) 19. Bg2 {[%emt 0:10:19] White is more active. A strong pair of Bishops.} Be5 {[%emt 0:02:22][%csl LRb2,LRc4]} 20. Rac1 {[%emt 0:00:11]} Ng4 $1 {[%emt 0:15:44]} 21. Bd4 {[%emt 0:00:21]} g6 {[%emt 0:07:52]} 22. h3 {[%emt 0:10:36]} Bxd4 {[%emt 0:00:25]} 23. Rxd4 {[%emt 0:00:01]} Nf6 {[%emt 0:03:59]} 24. Rcd1 {[%emt 0:01:16]} Kf8 {[%emt 0:00:37]} 25. Kf1 {[%emt 0:00:53]} Ke7 {[%emt 0:00:26]} 26. b3 {[%emt 0:00:47]} Rd8 {[%emt 0:01:30]} 27. Ke2 {[%emt 0:00:06]} Rxd4 {[%emt 0:05:06]} 28. Rxd4 {[%emt 0:00:01]} Rd8 {[%emt 0:00:12]} 29. Rxd8 {[%emt 0:00:04]} Kxd8 {[%emt 0:00:07][%mdl 4096] Endgame KB-KN} 30. b4 {[%emt 0:04:49]} Kc7 {[%emt 0:01:16]} 31. Kd3 {[%emt 0:06:19]} Kd6 {[%emt 0:02:36]} 32. a4 {[%emt 0:03:16]} Nd7 {[%emt 0:02:24]} 33. f4 {[%emt 0:00:08]} e5 {[%emt 0:01:58]} 34. fxe5+ {[%emt 0:03:02]} Nxe5+ {[%emt 0:00:09]} 35. Kd4 {[%emt 0:00:01]} Nd7 {[%emt 0:00:34] Against c5+} (35... Nc6+ $11 {and Black stays safe.} 36. Bxc6 Kxc6) 36. a5 $18 {[%emt 0:00:38]} bxa5 {[%emt 0:00:58]} 37. c5+ {[%emt 0:00:01]} ({Stronger than} 37. bxa5 Nc5 $11) 37... Kc7 {[%emt 0:00:24]} 38. bxa5 {[%emt 0:00:01]} f5 {[%emt 0:01:03]} 39. Bf1 $2 {[%emt 0:02:26]} (39. Bf3 $18) 39... Nb8 $1 $11 {[%emt 0:00:22] The position is equal.} 40. Ke5 {[%emt 0:00:23]} Nc6+ {[%emt 0:00:41]} 41. Kf6 {[%emt 0:30:07] [#] aiming for Kg7.} Nxa5 {[%emt 0:30:03]} 42. Kg7 {[%emt 0:00:55]} Nb3 {[%emt 0:00:22] Threatens to win with ...a5.} 43. Kxh7 {[%emt 0:00:00]} Nxc5 {[%emt 0:00:00]} 44. Kxg6 {[%emt 0:00:00]} Ne4 $1 {[%emt 0:00:00]} 45. g4 {[%emt 0:00:00]} fxg4 {[%emt 0:00:00]} 46. hxg4 {[%emt 0:00:00]} Nf2 {[%emt 0:00:00]} 47. g5 {[%emt 0:00:00]} Ne4 {[%emt 0:00:00]} 48. Bxa6 {[%emt 0:00:00]} Nxg5 {[%emt 0:00:00] Weighted Error Value: White=0.18 (very precise) /Black=0.17 (very precise)} 1/2-1/2

[Event "Krakow Championship-A 2022"]
[Site "Krakow"]
[Date "2022.06.28"]
[Round "5.19"]
[White "Torkkola, Henri"]
[Black "Liu, Casper"]
[Result "0-1"]
[ECO "D00"]
[WhiteElo "2197"]
[BlackElo "2218"]
[Annotator "RC"]
[PlyCount "60"]
[EventDate "2022.06.25"]
[EventType "swiss"]
[EventCountry "POL"]
[SourceTitle "playchess.com"]
[Source "ChessBase"]
[SourceQuality "1"]
[TimeControl "40/5400+30:1800+30"]

1. d4 {[%emt 0:03:24]} d5 {[%emt 0:00:02]} 2. Bf4 {[%emt 0:00:05]} c5 {[%emt 0:00:05]} 3. e3 {[%emt 0:00:04]} cxd4 {[%emt 0:00:18]} 4. exd4 {[%emt 0:00:05]} Nc6 {[%emt 0:00:05]} 5. c3 {[%emt 0:00:10]} f6 {[%emt 0:00:15]} 6. Bd3 {[%emt 0:04:20]} e5 {[%emt 0:00:05]} 7. Qh5+ {[%emt 0:03:05]} g6 {[%emt 0:00:07]} 8. Bxg6+ {[%emt 0:00:47]} hxg6 {[%emt 0:00:04]} 9. Qxh8 {[%emt 0:00:05]} exf4 {[%emt 0:00:06]} 10. Qxg8 {[%emt 0:04:35]} Bf5 {[%emt 0:00:19]} 11. Qh7 {[%emt 0:26:15]} Qb6 {[%emt 0:02:44]} 12. Ne2 {[%emt 0:13:48]} Qxb2 {[%emt 0:01:43]} 13. O-O {[%emt 0:02:46]} O-O-O {[%emt 0:01:17]} 14. c4 {[%emt 0:25:20]} Qxa1 {[%emt 0:01:13]} 15. Nbc3 {[%emt 0:00:33]} Qb2 {[%emt 0:00:02]} 16. Nxd5 {[%emt 0:01:11]} Bd6 {[%emt 0:02:43]} 17. c5 {[%emt 0:02:01]} Qxe2 {[%emt 0:10:22]} 18. cxd6 {[%emt 0:00:07]} Bd7 {[%emt 0:01:24]} 19. Nxf6 {[%emt 0:02:47]} Qe6 {[%emt 0:01:41]} 20. Qg7 {[%emt 0:02:05]} Qxd6 {[%emt 0:02:53]} 21. d5 {[%emt 0:00:05]} Ne7 {[%emt 0:00:46]} 22. Rc1+ {[%emt 0:00:40]} Kb8 {[%emt 0:00:10]} 23. Ne4 {[%emt 0:00:43]} Nf5 {[%emt 0:01:41]} 24. Qc3 {[%emt 0:01:23]} Qb6 {[%emt 0:00:12]} 25. Qe5+ {[%emt 0:01:15]} Ka8 {[%emt 0:00:06]} 26. Ng5 {[%emt 0:02:26]} a6 {[%emt 0:02:23]} 27. Qxf4 {[%emt 0:00:58]} Nd4 {[%emt 0:00:01]} 28. Qd2 {[%emt 0:01:32]} Bb5 {[%emt 0:00:25]} 29. Re1 {[%emt 0:01:06]} Rxd5 {[%emt 0:00:08]} 30. Qe3 {[%emt 0:00:44]} Ne2+ {[%emt 0:00:27]} 0-1

[Event "Krakow Championship-A 2022"]
[Site "Krakow"]
[Date "2022.06.28"]
[Round "5.20"]
[White "Kvaloy, Aksel Bu"]
[Black "Michalicka, Milan"]
[Result "1-0"]
[ECO "B48"]
[WhiteElo "2296"]
[BlackElo "2222"]
[Annotator "TA"]
[PlyCount "71"]
[EventDate "2022.06.25"]
[EventType "swiss"]
[EventCountry "POL"]
[SourceTitle "playchess.com"]
[Source "ChessBase"]
[SourceQuality "1"]
[TimeControl "40/5400+30:1800+30"]

{[%evp 11,71,37,53,10,19,12,0,-10,10,0,30,39,36,51,45,40,53,39,29,-14,-12,-16,-10,-12,-20,0,-5,-10,21,39,31,27,81,21,75,68,90,70,268,283,341,338,324,321,315,325,305,304,479,473,470,470,460,449,525,491,623,593,619,575,760,734]} 1. e4 {[%emt 0:01:36]} c5 {[%emt 0:00:41]} 2. Nf3 {[%emt 0:00:23]} e6 {[%emt 0:00:10]} 3. d4 {[%emt 0:00:17]} cxd4 {[%emt 0:00:08]} 4. Nxd4 {[%emt 0:00:04]} Nc6 {[%emt 0:00:16]} 5. Nc3 {[%emt 0:00:20]} Qc7 {[%emt 0:00:16]} 6. Be3 {[%emt 0:00:43]} a6 {[%emt 0:00:26]} 7. g4 {[%emt 0:00:17] B48: Sicilian: Taimanov: 5 Nc3 Qc7 6 Be3 a6 without Be2.} b5 {[%emt 0:00:30]} 8. Nxc6 {[%emt 0:00:24]} Qxc6 {[%emt 0:00:47]} 9. Qd2 {[%emt 0:01:10] The position is equal.} Bb7 {[%emt 0:02:23]} 10. O-O-O {[%emt 0:05:13]} Rd8 {[%emt 0:09:02]} (10... Nf6 $5 {[%cal Rb5b4]} 11. f3 b4 $11) 11. Bg2 {[%emt 0:14:44]} Bc5 {[%emt 0:04:55]} 12. Bd4 {[%emt 0:06:36]} Bxd4 {[%emt 0:02:21]} 13. Qxd4 {[%emt 0:00:20]} f6 {[%emt 0:00:31]} 14. f4 {[%emt 0:08:51]} Qc7 {[%emt 0:01:52]} 15. Qd6 {[%emt 0:15:55]} (15. f5 {seems wilder.} Ne7 16. g5 O-O 17. gxf6 Rxf6 18. fxe6 Rxe6 19. Kb1) 15... Qxd6 {[%emt 0:02:57]} 16. Rxd6 {[%emt 0:00:02]} Bc6 {[%emt 0:02:08] [#]} 17. Ne2 $146 {[%emt 0:08:52]} ({Predecessor:} 17. Rg1 Nh6 18. Rd3 Ke7 19. Re1 Kf8 20. h3 Nf7 21. Ne2 Ke7 22. Nd4 e5 23. Nf5+ {0-1 (48) Mora Munoz,A (2011)-Rodriguez Dominguez,M (2105) Santa Clara 2022}) 17... Ke7 {[%emt 0:01:13]} 18. Rd3 {[%emt 0:04:58][%cal Bd6d3,Bd3a3,Ba3a6][%mdl 32]} Nh6 {[%emt 0:01:25]} 19. Nd4 {[%emt 0:02:33]} g6 {[%emt 0:11:25]} 20. Nxc6+ {[%emt 0:10:57]} dxc6 {[%emt 0:01:22]} 21. Ra3 {[%emt 0:00:22]} e5 {[%emt 0:09:42] [#]} (21... Ra8 $11) 22. fxe5 {[%emt 0:03:33]} ({Better is} 22. g5 $1 $16 {[%cal Rg5h6]} fxg5 23. fxg5) 22... fxe5 {[%emt 0:00:13]} (22... Nxg4 $11 {remains equal.} 23. exf6+ Kxf6) 23. g5 $16 {[%emt 0:03:46]} Nf7 {[%emt 0:01:58]} 24. Rxa6 {[%emt 0:00:47]} Kd6 $2 {[%emt 0:05:46] This move loses the game for Black.} ({Black should try} 24... Ra8 $14 25. Rxc6 Rxa2) 25. Rf1 $18 {[%emt 0:02:21]} Nxg5 {[%emt 0:01:49]} 26. Rf6+ {[%emt 0:00:18]} Ke7 {[%emt 0:02:07]} 27. Rfxc6 {[%emt 0:01:29]} ({Weaker is} 27. Raxc6 Rhf8 28. Rf1 Rxf1+ 29. Bxf1 Ra8 $16) 27... Rhf8 {[%emt 0:00:25]} 28. Rc5 {[%emt 0:02:21][%csl LRb5,LRe5]} Nf3 {[%emt 0:01:59]} 29. Rxb5 {[%emt 0:01:37]} Nd4 {[%emt 0:01:38]} (29... Rd6 $142) 30. Rxe5+ {[%emt 0:01:07] White is clearly winning.} Kf7 {[%emt 0:00:11] ( -> ...Ne2+)} 31. c3 {[%emt 0:01:21]} Ne2+ {[%emt 0:00:24] [#]} 32. Kc2 $1 {[%emt 0:00:07]} Kg8 {[%emt 0:00:14]} 33. Rd5 {[%emt 0:02:49]} Rxd5 {[%emt 0:00:45]} 34. exd5 {[%emt 0:00:01]} Rf2 {[%emt 0:00:08] [#]} 35. d6 $1 {[%emt 0:00:54] Black must now prevent d7.} Kf7 {[%emt 0:01:59]} (35... Nf4+ 36. Kb3) 36. Bd5+ {Weighted Error Value: White=0.07 (flawless) /Black=0.36} 1-0

[Event "Krakow Championship-A 2022"]
[Site "Krakow"]
[Date "2022.06.28"]
[Round "5.21"]
[White "Shehzad, Shazil"]
[Black "Turski, Bartlomiej"]
[Result "0-1"]
[ECO "B30"]
[WhiteElo "2237"]
[BlackElo "2192"]
[Annotator "RC"]
[PlyCount "74"]
[EventDate "2022.06.25"]
[EventType "swiss"]
[EventCountry "POL"]
[SourceTitle "playchess.com"]
[Source "ChessBase"]
[SourceQuality "1"]
[TimeControl "40/5400+30:1800+30"]

1. e4 {[%emt 0:01:08]} c5 {[%emt 0:00:06]} 2. Nf3 {[%emt 0:00:05]} Nc6 {[%emt 0:00:04]} 3. Bb5 {[%emt 0:00:05]} e6 {[%emt 0:00:05]} 4. O-O {[%emt 0:00:12]} Nge7 {[%emt 0:00:06]} 5. d4 {[%emt 0:00:04]} cxd4 {[%emt 0:00:45]} 6. Nxd4 {[%emt 0:00:08]} Qb6 {[%emt 0:00:24]} 7. Nxc6 {[%emt 0:00:55]} bxc6 {[%emt 0:00:44]} 8. Be2 {[%emt 0:00:34]} Ng6 {[%emt 0:00:20]} 9. c4 {[%emt 0:00:30]} Be7 {[%emt 0:01:57]} 10. Be3 {[%emt 0:00:07]} c5 {[%emt 0:01:42]} 11. Nc3 {[%emt 0:02:46]} O-O {[%emt 0:07:20]} 12. Rb1 {[%emt 0:00:36]} Qc7 {[%emt 0:00:18]} 13. f4 {[%emt 0:04:29]} d6 {[%emt 0:00:42]} 14. g3 {[%emt 0:02:36]} Bb7 {[%emt 0:02:40]} 15. h4 {[%emt 0:02:47]} Bf6 {[%emt 0:32:17]} 16. Bf3 {[%emt 0:16:37]} Bxc3 {[%emt 0:04:30]} 17. bxc3 {[%emt 0:06:22]} Ne7 {[%emt 0:00:55]} 18. f5 {[%emt 0:09:53]} d5 {[%emt 0:05:40]} 19. Bf4 {[%emt 0:02:42]} e5 {[%emt 0:10:03]} 20. cxd5 {[%emt 0:00:58]} exf4 {[%emt 0:06:29]} 21. d6 {[%emt 0:01:14]} Qd7 {[%emt 0:00:27]} 22. dxe7 {[%emt 0:00:49]} Qxe7 {[%emt 0:00:07]} 23. gxf4 {[%emt 0:05:16]} Ba6 {[%emt 0:04:28]} 24. Rf2 {[%emt 0:02:05]} Rad8 {[%emt 0:02:33]} 25. Qa4 {[%emt 0:02:31]} Bd3 {[%emt 0:00:31]} 26. Re1 {[%emt 0:00:31]} Qxh4 {[%emt 0:03:00]} 27. Bg2 {[%emt 0:00:52]} Qg3 {[%emt 0:06:09]} 28. Qxa7 {[%emt 0:13:21]} Rd6 {[%emt 0:01:41]} 29. Rd1 {[%emt 0:10:02]} Rh6 {[%emt 0:00:30]} 30. Rf3 {[%emt 0:01:06]} Qh2+ {[%emt 0:00:25]} 31. Kf2 {[%emt 0:01:20]} Ra6 {[%emt 0:01:14]} 32. Qd7 {[%emt 0:01:31]} Rxa2+ {[%emt 0:04:02]} 33. Ke3 {[%emt 0:00:24]} Bxe4 {[%emt 0:00:12]} 34. Kxe4 {[%emt 0:01:30]} Qxg2 {[%emt 0:00:01]} 35. Rdd3 {[%emt 0:01:23]} c4 {[%emt 0:00:37]} 36. Rde3 {[%emt 0:00:19]} Qc2+ {[%emt 0:00:11]} 37. Kd5 {[%emt 0:00:13]} Qd2+ {[%emt 0:00:10]} 0-1

[Event "Krakow Championship-A 2022"]
[Site "Krakow"]
[Date "2022.06.28"]
[Round "5.22"]
[White "Easwaralingam, Adesh"]
[Black "Gjestemoen-VonHirsch, Andre"]
[Result "1-0"]
[ECO "B31"]
[WhiteElo "2116"]
[BlackElo "2236"]
[Annotator "RC"]
[PlyCount "57"]
[EventDate "2022.06.25"]
[EventType "swiss"]
[EventCountry "POL"]
[SourceTitle "playchess.com"]
[Source "ChessBase"]
[SourceQuality "1"]
[TimeControl "40/5400+30:1800+30"]

1. e4 {[%emt 0:00:05]} c5 {[%emt 0:03:13]} 2. Nf3 {[%emt 0:00:13]} Nc6 {[%emt 0:00:05]} 3. Bb5 {[%emt 0:00:27]} g6 {[%emt 0:00:16]} 4. O-O {[%emt 0:00:33]} Bg7 {[%emt 0:00:08]} 5. c3 {[%emt 0:00:31]} e5 {[%emt 0:00:18]} 6. d4 {[%emt 0:01:02]} cxd4 {[%emt 0:00:07]} 7. cxd4 {[%emt 0:00:06]} exd4 {[%emt 0:00:08]} 8. Bf4 {[%emt 0:00:53]} a6 {[%emt 0:00:46]} 9. Ba4 {[%emt 0:02:56]} Nge7 {[%emt 0:00:17]} 10. Bd6 {[%emt 0:01:02]} b5 {[%emt 0:00:16]} 11. Bb3 {[%emt 0:01:15]} Bb7 {[%emt 0:00:29]} 12. Re1 {[%emt 0:00:10]} Nc8 {[%emt 0:00:21]} 13. e5 {[%emt 0:00:08]} Nxd6 {[%emt 0:00:05]} 14. exd6+ {[%emt 0:00:07]} Kf8 {[%emt 0:00:05]} 15. h4 {[%emt 0:01:38]} Bf6 {[%emt 0:01:18]} 16. Nbd2 {[%emt 0:03:16]} Kg7 {[%emt 0:06:46]} 17. Bd5 {[%emt 0:10:03]} Bxh4 {[%emt 0:23:35]} 18. Nxh4 {[%emt 0:07:33]} Qxh4 {[%emt 0:00:09]} 19. Ne4 {[%emt 0:04:05]} Rae8 {[%emt 0:15:15]} 20. g3 {[%emt 0:10:17]} Qd8 {[%emt 0:06:56]} 21. Bxc6 {[%emt 0:13:11]} Bxc6 {[%emt 0:00:16]} 22. Qxd4+ {[%emt 0:00:05]} f6 {[%emt 0:00:25]} 23. Rac1 {[%emt 0:00:22]} Re6 {[%emt 0:25:25]} 24. Rxc6 {[%emt 0:04:13]} dxc6 {[%emt 0:00:07]} 25. Qa7+ {[%emt 0:00:05]} Kf8 {[%emt 0:06:33]} 26. Kg2 {[%emt 0:03:41]} Rxe4 {[%emt 0:04:20]} 27. Rxe4 {[%emt 0:00:59]} Qxd6 {[%emt 0:01:15]} 28. Rd4 {[%emt 0:00:59]} Qe7 {[%emt 0:01:56]} 29. Rd7 {[%emt 0:00:14]} 1-0

[Event "Krakow Championship-A 2022"]
[Site "Krakow"]
[Date "2022.06.29"]
[Round "6.1"]
[White "Warakomski, Tomasz"]
[Black "Nguyen, Piotr"]
[Result "0-1"]
[ECO "B76"]
[WhiteElo "2534"]
[BlackElo "2402"]
[Annotator "TA"]
[PlyCount "70"]
[EventDate "2022.06.25"]
[EventType "swiss"]
[EventCountry "POL"]
[SourceTitle "playchess.com"]
[Source "ChessBase"]
[SourceQuality "1"]
[TimeControl "40/5400+30:1800+30"]

{[%evp 22,69,36,37,19,18,26,14,17,18,18,14,6,16,17,13,25,0,0,0,0,0,0,-15,0,-118,-102,-120,-131,-164,-182,-255,-231,-775,-743,-914,-865,-29967,-29961,-29983,-29984,-29984,-29985,-29985,-29986,-29986,-29987,-29998,-29999,-29999]} 1. e4 {[%emt 0:00:06]} c5 {[%emt 0:00:08]} 2. Nf3 {[%emt 0:00:11]} d6 {[%emt 0:00:11]} 3. d4 {[%emt 0:00:44]} cxd4 {[%emt 0:00:05]} 4. Nxd4 {[%emt 0:00:04]} Nf6 {[%emt 0:00:06]} 5. Nc3 {[%emt 0:00:05]} g6 {[%emt 0:00:12]} 6. Be3 {[%emt 0:06:36]} Bg7 {[%emt 0:00:18]} 7. f3 {[%emt 0:00:05]} O-O {[%emt 0:00:11]} 8. Qd2 {[%emt 0:00:05]} Nc6 {[%emt 0:00:15]} 9. g4 {[%emt 0:00:36]} Be6 {[%emt 0:00:54]} 10. Nxe6 {[%emt 0:01:39]} fxe6 {[%emt 0:01:05]} 11. O-O-O {[%emt 0:00:11]} Ne5 {[%emt 0:01:01]} 12. Be2 {[%emt 0:00:48] Black must now prevent g5.} Qc8 {[%emt 0:02:37] B76: Sicilian Dragon: Yugoslav Attack, 9 g4 and 9 0-0-0.} 13. h4 {[%emt 0:00:34] next h5 is good for White.} Nfd7 {[%emt 0:00:47]} 14. h5 {[%emt 0:02:18] And now f4 would win.} Nc4 {[%emt 0:02:24] The position is equal.} 15. Bxc4 {[%emt 0:00:19]} Qxc4 {[%emt 0:00:07]} 16. hxg6 {[%emt 0:00:34]} hxg6 {[%emt 0:00:15]} 17. f4 {[%emt 0:00:30][%cal Of4f5] Black should prevent f5!} Bxc3 {[%emt 0:07:26]} 18. bxc3 {[%emt 0:00:09][%cal Oe4e5] [#] e5! is the strong threat.} Rac8 {[%emt 0:00:47] [#]} 19. Qh2 $146 {[%emt 0:20:20][%csl Gh1][%cal Rh2h7]} (19. e5 $5 Qxc3 20. Qxc3 Rxc3 {[#]} 21. exd6 $1 exd6 22. Rxd6 Rxe3 23. Rxd7 $14) ({Predecessor:} 19. e5 Qxc3 20. Qxc3 Rxc3 21. exd6 exd6 22. Rxd6 Rxe3 23. Rxd7 Rf7 24. Rh8+ Kxh8 25. Rxf7 b5 26. Rxa7 Re4 27. Rf7 {½-½ (27) Goncharenko,G (2491)-Percze,J (2536) ICCF email 2009}) 19... Kf7 $40 {[%emt 0:00:58][%mdl 128] Black is up to no good.} 20. Qh7+ {[%emt 0:00:41]} Ke8 {[%emt 0:00:07]} 21. Qxg6+ {[%emt 0:00:18]} Kd8 {[%emt 0:00:10]} 22. Rd3 {[%emt 0:18:17]} e5 {[%emt 0:13:47][%cal Be6e5,Be5f4,Bf4f3,Bf3f2][%mdl 32]} 23. Qg7 {[%emt 0:10:29]} (23. Rh7 $11 Nf6 24. fxe5 Nxe4 25. Rh1 (25. exd6 {is a self mate.} Rf1+ 26. Kb2 Qb5+ 27. Ka3 Rxc3+ 28. Rxc3 Qa5+ 29. Kb3 Rb1+ 30. Kc4 Rb4+ 31. Kd3 Qb5+)) 23... exf4 $17 {[%emt 0:07:38]} 24. Rh7 {[%emt 0:05:49]} Qe6 {[%emt 0:07:54]} 25. Bd4 {[%emt 0:08:06]} f3 {[%emt 0:08:53] aiming for ...f2.} 26. Rh6 {[%emt 0:07:56]} (26. Rd1 {was called for.}) 26... Qxa2 $19 {[%emt 0:02:59]} 27. Rh8 $2 {[%emt 0:05:12]} (27. Rh7 Qe6 28. Rd1) 27... Kc7 {[%emt 0:05:47]} 28. Rxf8 {[%emt 0:02:56]} Rxf8 {[%emt 0:00:30]} 29. Qxe7 {[%emt 0:00:36]} f2 {[%emt 0:07:54] Black mates.} 30. Bb6+ {[%emt 0:01:28]} axb6 {[%emt 0:02:25]} 31. Qxd6+ {[%emt 0:00:08]} Kc8 {[%emt 0:00:04]} 32. Qxd7+ {[%emt 0:00:04]} Kb8 {[%emt 0:00:03]} 33. Qd6+ {[%emt 0:00:12]} Ka7 {[%emt 0:00:05]} 34. Qxf8 {[%emt 0:00:07]} Qa1+ {[%emt 0:00:04]} 35. Kd2 {[%emt 0:00:02]} Qe1# {[%emt 0:00:07] Weighted Error Value: White=0.91/Black=0.01 (flawless)} 0-1